Workbook

Sheet Descriptif
B2: Ce classeur a été créé afin de permettre au régisseur d'un théâtre de tenir d'une façon simple le relevé de ses entrées et ses sorties (recettes et dépenses)
B4: Afin de rendre les choses automatiques, quelques macros ont été créées :
B13: Différentes macros sont disponibles sur certaines feuilles du classeur :
B15: Sur la feuille : | D15: Vous pourrez utiliser les macros suivantes :
B17: 'Extraits' | D17: Insérer : | F17: Permet l'insertion de 2 lignes et la recopie des formules dans le bas du tableau d'encodage des mouvements financiers
D19: RenommerSourceTCD : | F19: Permet de rédéfinir la zone qui contient les données source du TCD
B21: 'Filtres' | D21: Filtrer : | F21: Permet de filtrer les lignes encodées correspondant à un type (libelllé) de recette ou dépense
B23: 'TCD' | D23: ActualiserTCD : | F23: Exécute plusieurs autres macros :
F24: 1- Redéfinit la zone nommée des données du tableau croisé dynamique : RenommerSourceTCD
F25: 2- Se replacer sur la feuille TCD et actualiser le TCD
F26: 3- Exécute la macro MiseEnFormeTCD
D29: MiseEnFormeTCD : | F29: 1- Donne une largeur de 12 à toutes les colonnes du TCD, regroupe les dates par année et centre les années
F30: 2- Ajuste la colonne C à son contenu le plus long

Sheet Récap Comptes
C1: I - RECETTES
C4: NATURE DES RECETTES | D4: Compte de l'année
D5: 2016
A8: R1 | B8: R1 | C8: Entrées | D8: =SUMIF(Codes,B8,Montants) -> 2100
A9: R2 | B9: R2 | C9: Sponsors | D9: =SUMIF(Codes,B9,Montants) -> 2300
A10: R3 | B10: R3 | C10: Dons | D10: =SUMIF(Codes,B10,Montants) -> 0
A11: R4 | B11: R4 | C11: Subsides | D11: =SUMIF(Codes,B11,Montants) -> 0
B12: R5 | C12: Autres recettes | D12: =SUMIF(Codes,B12,Montants) -> 0
C14: Total des recettes | D14: =SUM(D8:D12) -> 4400
C16: II - DEPENSES
C19: NATURE DES DEPENSES
A22: D1 | B22: D1 | C22: Nourriture | D22: =SUMIF(Codes,B22,Montants) -> 0
A23: D2 | B23: D2 | C23: Boissons | D23: -100
A24: D3 | B24: D3 | C24: Chauffage | D24: -1500
A25: D4 | B25: D4 | C25: Eclairage | D25: 0
A26: D16 | B26: D5 | C26: Traitement du metteur en scène | D26: 0
A27: D17 | B27: D6 | C27: Traitement des acteurs | D27: 0
A28: D20 | B28: D7 | C28: Traitement du souffleur | D28: 0
A29: D18 | B29: D8 | C29: Traitement des employés d'entretien | D29: 1000
C31: Total des dépenses | D31: =SUM(D22:D29) -> -600
C33: III - RECAPITULATION
C36: Recettes | D36: =D14 -> 4400
C37: Balance
C38: Dépenses | D38: =D31 -> -600
C39: Excédent | D39: =D36+D38 -> 3800
C41: Le présent compte, dressé et déclaré sincère par le trésorier soussigné, est arrêté par le conseil
C42: d'administration, sous les réserves et observations consignées en tête.
C45: Ainsi fait en conseil d'administration … le
C47: Le Secrétaire Le Président Les Membres Le Membre-Trésorier

Sheet Listes
A1: Catégories
B3: ='Récap Comptes'!C8 -> Entrées | C3: ='Récap Comptes'!B8 -> R1
B4: ='Récap Comptes'!C9 -> Sponsors | C4: ='Récap Comptes'!B9 -> R2
B5: ='Récap Comptes'!C10 -> Dons | C5: ='Récap Comptes'!B10 -> R3
B6: ='Récap Comptes'!C11 -> Subsides | C6: ='Récap Comptes'!B11 -> R4
B7: ='Récap Comptes'!C12 -> Autres recettes | C7: ='Récap Comptes'!B12 -> R5
B8: ='Récap Comptes'!C22 -> Nourriture | C8: ='Récap Comptes'!B22 -> D1
B9: ='Récap Comptes'!C23 -> Boissons | C9: ='Récap Comptes'!B23 -> D2
B10: ='Récap Comptes'!C24 -> Chauffage | C10: ='Récap Comptes'!B24 -> D3
B11: ='Récap Comptes'!C25 -> Eclairage | C11: ='Récap Comptes'!B25 -> D4
B12: ='Récap Comptes'!C26 -> Traitement du metteur en scène | C12: ='Récap Comptes'!B26 -> D5
B13: ='Récap Comptes'!C27 -> Traitement des acteurs | C13: ='Récap Comptes'!B27 -> D6
B14: ='Récap Comptes'!C28 -> Traitement du souffleur | C14: ='Récap Comptes'!B28 -> D7
B15: ='Récap Comptes'!C29 -> Traitement des employés d'entretien | C15: ='Récap Comptes'!B29 -> D8

Sheet Extraits
A1: Extraits - Dépenses | D1: Filtrer les données
A3: N° | B3: Date | C3: Libellé | D3: Code catégorie | E3: Montant | F3: Totaux
A4: 8 | B4: 2003-08-05 | C4: Boissons | D4: =IF(ISNA(VLOOKUP(C4,Catégories_codes,2,FALSE)),"",VLOOKUP(C4,Catégories_codes,2,FALSE)) -> D2 | E4: -100 | F4: =IF(ISBLANK(E4),"",SUM($E$4:E4)) -> -100
A5: 9 | B5: 2003-08-06 | C5: Sponsors | D5: R2 | E5: 1000 | F5: =IF(ISBLANK(E5),"",SUM($E$4:E5)) -> 900
A6: 11 | B6: 2003-08-12 | C6: Entrées | D6: R1 | E6: 200 | F6: =IF(ISBLANK(E6),"",SUM($E$4:E6)) -> 1100
A7: 12 | B7: 2012-11-11 | C7: Sponsors | D7: R2 | E7: 500 | F7: =IF(ISBLANK(E7),"",SUM($E$4:E7)) -> 1600
A8: 13 | B8: 2016-03-10 | C8: Chauffage | D8: D3 | E8: -500 | F8: =IF(ISBLANK(E8),"",SUM($E$4:E8)) -> 1100
A9: 14 | B9: 2016-03-10 | C9: Traitement des employés d'entretien | D9: D8 | E9: 1000 | F9: =IF(ISBLANK(E9),"",SUM($E$4:E9)) -> 2100
A10: 15 | B10: 2016-03-10 | C10: Sponsors | D10: R2 | E10: 800 | F10: =IF(ISBLANK(E10),"",SUM($E$4:E10)) -> 2900
A11: 16 | B11: 2016-03-10 | C11: Entrées | D11: R1 | E11: 1200 | F11: =IF(ISBLANK(E11),"",SUM($E$4:E11)) -> 4100
A12: 17 | B12: 2016-03-10 | C12: Entrées | D12: R1 | E12: 200 | F12: =IF(ISBLANK(E12),"",SUM($E$4:E12)) -> 4300
A13: 18 | B13: 2016-03-10 | C13: Chauffage | D13: D3 | E13: -500 | F13: =IF(ISBLANK(E13),"",SUM($E$4:E13)) -> 3800
A14: 19 | B14: 2016-03-10 | C14: Chauffage | D14: D3 | E14: -500 | F14: =IF(ISBLANK(E14),"",SUM($E$4:E14)) -> 3300
A15: 20 | B15: 2016-03-10 | C15: Entrées | D15: R1 | E15: 500 | F15: =IF(ISBLANK(E15),"",SUM($E$4:E15)) -> 3800
E16: Total général | F16: =IF(ISBLANK(E16),"",SUM($E$4:E16)) -> 3800
B112: Total général

Sheet Filtres
B1: Retour
A3: Libellé
A4: Entrées
A6: Libellé | B6: Date | C6: Montant
A7: Entrées | B7: 2003-08-12 | C7: 200
A8: Entrées | B8: 2016-03-10 | C8: 1200
A9: Entrées | B9: 2016-03-10 | C9: 200
A10: Entrées | B10: 2016-03-10 | C10: 500

Sheet TCD
A1: Le tableau croisé dynamique suivant a été créé : regroupement par type et par année, avec addition des montants en données de synthèse.
A2: Un bouton 'Actualiser TCD' permet de redéfinir la zone source du TCD et d'actualiser les données (avec redimension des colonnes à 12)
C6: Somme | D6: Date
C7: Libellé | D7: 2003 | E7: 2012 | F7: 2016 | G7: Total général
C8: Chauffage | F8: -1500 | G8: -1500
C9: Entrées | D9: 200 | F9: 1900 | G9: 2100
C10: Sponsors | D10: 1000 | E10: 500 | F10: 800 | G10: 2300
C11: Boissons | D11: -100 | G11: -100
C12: Traitement des employés d'entretien | F12: 1000 | G12: 1000
C13: Total général | D13: 1100 | E13: 500 | F13: 2200 | G13: 3800
